[Event "Manhem Chess Week-IM 2019"]
[Site "Moelnlycke"]
[Date "2019.08.13"]
[Round "5.8"]
[White "Pham, Bich Ngoc"]
[Black "Ornstein, Axel"]
[Result "1-0"]
[ECO "A03"]
[WhiteElo "2176"]
[BlackElo "2311"]
[Annotator "NA"]
[PlyCount "51"]
[EventDate "2019.08.10"]
[EventType "tourn"]
[EventCountry "SWE"]
[SourceTitle "playchess.com"]
[Source "ChessBase"]
[SourceQuality "1"]
[TimeControl "40/5400+30:1800+30"]

1. f4 {[%emt 0:00:00]} d5 {[%emt 0:00:00]} 2. Nf3 {[%emt 0:00:00]} Nf6 {[%emt 0:00:00]} 3. g3 {[%emt 0:00:00]} Bf5 {[%emt 0:00:00]} 4. Bg2 {[%emt 0:00:12]} e6 {[%emt 0:00:00]} 5. d3 {[%emt 0:00:20]} h6 {[%emt 0:00:01]} 6. O-O {[%emt 0:02:37]} Nbd7 {[%emt 0:02:23]} 7. e3 {[%emt 0:02:43]} c6 {[%emt 0:07:12]} 8. Qe2 {[%emt 0:01:02]} Bc5 {[%emt 0:00:28]} 9. Nc3 {[%emt 0:01:25]} Bh7 {[%emt 0:00:49]} 10. h3 {[%emt 0:03:25]} ({White should play} 10. Kh1 $11) 10... Qe7 {[%emt 0:03:35]} 11. Kh2 {[%emt 0:00:23]} Bb4 {[%emt 0:06:28]} (11... g5 $5) 12. Bd2 $11 {[%emt 0:14:34]} e5 {[%emt 0:00:40]} 13. fxe5 {[%emt 0:02:36]} Nxe5 {[%emt 0:00:02]} 14. Nxe5 {[%emt 0:00:55]} Qxe5 {[%emt 0:00:04]} 15. Nxd5 {[%emt 0:00:40]} Nh5 {[%emt 0:05:01]} 16. Qf2 {[%emt 0:20:55]} Bxd2 {[%emt 0:01:23]} 17. Qxf7+ {[%emt 0:01:25]} Kd8 {[%emt 0:00:01]} 18. Qxb7 {[%emt 0:05:48]} Rb8 {[%emt 0:01:51]} 19. Qxc6 {[%emt 0:00:36]} Rc8 {[%emt 0:16:21]} 20. Qb7 {[%emt 0:01:08]} Nxg3 {[%emt 0:00:16]} 21. Rf7 {[%emt 0:04:36]} Bf5 {[%emt 0:00:06]} 22. Qe7+ {[%emt 0:09:19]} Qxe7 {[%emt 0:00:21]} 23. Nxe7 {[%emt 0:03:24]} Rxc2 {[%emt 0:03:52]} 24. Kxg3 {[%emt 0:02:10]} Bd7 {[%emt 0:00:36]} 25. Nd5 {[%emt 0:03:25]} g5 26. Rf2 {[%emt 0:00:30]} 1-0